bitfinex/quotes_ETHUSD_20240810
["timestamp","ask_amount","ask_price","bid_price","bid_amount"]
[1723251522529,3.86616,2586.6,2586.1,3.86674]
[1723251522757,3.86616,2586.6,2586.2,2.4651]
[1723251522942,7.73235,2586.6,2586.2,2.4651]
[1723251523145,3.86616,2586.6,2586.2,2.4651]
[1723251523342,3.86624,2586.5,2586.2,2.4651]
[1723251524030,3.86639,2586.4,2586.2,2.4651]
[1723251524531,4.252786,2586.6,2586.0,3.86694]
[1723251524727,4.252786,2586.6,2586.1,3.86674]
[1723251524728,3.86617,2586.6,2586.1,3.86674]
[1723251524960,3.86587,2586.8,2586.3,2.4651]
[1723251525149,3.0,2586.7,2586.3,2.4651]
[1723251525861,3.86575,2586.9,2586.3,6.33152]
[1723251526064,2.62282,2587.5,2586.4,0.07732586]
[1723251526270,3.86415,2587.9,2585.8,7.49]
[1723251526271,3.86526,2587.2,2586.7,2.4651]
[1723251526567,6.25638,2587.7,2586.8,3.86569]
[1723251526568,3.86497,2587.4,2586.8,3.86569]
[1723251526780,3.86497,2587.4,2586.8,3.94299671]
[1723251527132,3.86497,2587.4,2586.8,4.97040438]
[1723251527732,3.86506,2587.3,2586.8,4.97040438]
[1723251527928,7.72994,2587.4,2586.8,4.97040438]
[1723251528258,3.86507,2587.3,2586.8,1.10471438]
[1723251528967,3.86507,2587.3,2586.8,4.97047438]
[1723251529476,3.86519,2587.2,2586.8,1.10471438]
[1723251529643,3.86519,2587.2,2586.7,2.5424068]
[1723251530175,3.86519,2587.2,2586.7,2.4651]
[1723251530466,3.86551,2587.0,2586.7,2.4651]
[1723251531131,7.73112,2587.0,2586.7,2.4651]
[1723251531339,3.86551,2587.0,2586.7,2.4651]
[1723251531658,7.73108,2587.0,2586.7,2.4651]
[1723251531861,3.86567,2586.9,2586.7,2.4651]
[1723251532743,3.86587,2586.8,2586.4,2.4651]
[1723251532944,7.73139,2586.9,2586.4,2.4651]
[1723251533279,3.86567,2586.9,2586.4,3.484919]
[1723251533582,7.7314,2586.9,2586.4,3.484919]
[1723251533778,3.86578,2586.8,2586.4,3.484919]
[1723251534851,3.86567,2586.9,2586.4,3.484919]
[1723251535058,3.86594,2586.7,2586.4,3.484919]
[1723251536277,3.86581,2586.8,2586.4,3.484919]
[1723251536481,3.86596,2586.7,2586.4,2.4651]
[1723251537281,3.86616,2586.6,2586.4,2.4651]
[1723251537788,3.86622,2586.5,2586.4,2.4651]
[1723251537966,3.86622,2586.5,2585.8,7.49]
[1723251537967,3.86638,2586.4,2586.0,2.4651]
[1723251538141,2.3919,2587.2,2585.8,11.35726]
[1723251538142,3.86603,2586.7,2586.1,2.4651]
[1723251538342,3.86603,2586.7,2586.1,6.33191]
[1723251538568,7.73205,2586.7,2586.1,6.33191]
[1723251538800,3.86607,2586.6,2586.2,1.01988]
[1723251539000,3.86624,2586.5,2586.1,2.4651]
[1723251539300,3.86611,2586.6,2586.1,2.4651]
[1723251540880,3.86625,2586.5,2586.1,2.4651]
[1723251541396,3.86625,2586.5,2586.1,3.098297]
[1723251541700,3.86649,2586.4,2586.1,3.098297]
[1723251541899,3.86601,2586.7,2586.1,2.4651]
[1723251542097,3.86539,2587.1,2586.4,2.2749]
[1723251542280,3.0,2587.4,2586.4,2.2749]
[1723251542281,3.86555,2587.0,2586.4,2.2749]
[1723251542457,3.86555,2587.0,2586.6,2.2749]
[1723251543352,3.86555,2587.0,2586.6,2.889002]
[1723251543579,3.86541,2587.1,2586.6,2.889002]
[1723251543798,3.86541,2587.1,2586.6,6.755052]
[1723251543956,3.86541,2587.1,2586.6,6.14095]
[1723251545375,3.86557,2587.0,2586.6,2.2749]
[1723251546303,2.4459,2587.3,2586.3,2.2749]
[1723251546622,3.86587,2586.8,2586.3,2.2749]
[1723251546910,7.73262,2586.5,2586.3,2.2749]
[1723251547465,0.54459,2587.2,2585.9,3.86701]
[1723251547466,3.86637,2586.4,2585.9,2.2749]
[1723251547767,3.86654,2586.3,2585.9,2.2749]
[1723251548096,3.86669,2586.2,2585.9,2.2749]
[1723251548695,3.86693,2586.1,2585.9,2.2749]
[1723251548916,3.86697,2586.0,2585.9,2.2749]
[1723251549285,7.73375,2586.1,2585.9,2.2749]
[1723251549871,3.86683,2586.1,2585.9,2.2749]
[1723251550368,7.73374,2586.1,2585.9,2.2749]
[1723251551196,7.73373,2586.1,2585.9,2.2749]
[1723251552309,3.86683,2586.1,2585.9,2.2749]
[1723251552526,7.73374,2586.1,2585.9,2.2749]
[1723251553686,3.86697,2586.0,2585.9,2.2749]
[1723251553882,3.86719,2585.9,2585.4,2.2749]
[1723251554193,3.86719,2585.9,2585.4,5.961695]
[1723251554403,2.4459,2586.4,2585.4,5.961695]
[1723251554709,3.86713,2585.9,2585.4,5.961695]
[1723251554893,3.86682,2586.1,2585.4,5.961695]
[1723251555103,3.86682,2586.1,2585.5,0.9829605]
[1723251555709,3.86713,2585.9,2585.5,0.9829605]
[1723251559181,3.86682,2586.1,2585.5,4.8506405]
[1723251559420,7.73375,2586.1,2585.5,4.8506405]
[1723251559724,7.73374,2586.1,2585.5,4.8506405]
[1723251560022,3.86629,2586.5,2585.9,2.4491]
[1723251560207,3.86629,2586.5,2586.0,0.07732743]
[1723251560421,7.73265,2586.5,2586.0,0.07732743]
[1723251560728,3.86629,2586.5,2586.0,0.07732743]
[1723251560929,3.86629,2586.5,2586.0,1.10339917]
[1723251561127,6.12474,2587.0,2586.0,4.97021917]
[1723251561128,3.86608,2586.6,2586.0,4.97021917]
[1723251561420,3.86608,2586.6,2586.1,2.4491]
[1723251561717,3.86608,2586.6,2586.1,2.52642735]
[1723251562312,3.86603,2586.7,2586.1,2.4491]
[1723251562487,3.86611,2586.6,2586.1,2.4491]
[1723251562687,3.86611,2586.6,2586.1,3.080692]
[1723251563307,7.7321,2586.7,2586.1,6.947502]
[1723251563698,3.86571,2586.9,2586.3,2.4491]
[1723251563913,3.86571,2586.9,2586.5,2.4491]
[1723251564311,7.73143,2586.9,2586.5,2.4491]
[1723251564486,3.86553,2587.0,2586.5,6.31532]
[1723251564691,3.86553,2587.0,2586.5,2.4491]
[1723251565240,3.86569,2586.9,2586.5,2.4491]
[1723251565434,3.86527,2587.2,2586.5,2.4491]
[1723251565752,3.86549,2587.0,2586.5,3.080634]
[1723251566523,3.86575,2586.9,2586.5,3.080634]
[1723251567152,3.86575,2586.9,2586.5,2.4491]
[1723251569036,3.86602,2586.7,2586.5,2.4491]
[1723251569365,3.86539,2587.1,2586.1,2.4491]
[1723251569366,3.86616,2586.6,2586.1,2.4491]
[1723251569542,3.86667,2586.2,2586.1,2.4491]
[1723251569748,3.86667,2586.2,2585.6,2.4491]
[1723251569749,3.86673,2586.2,2585.6,2.4491]
[1723251570075,3.86668,2586.2,2585.6,3.86746]
[1723251570236,3.86642,2586.4,2585.7,6.31643]
[1723251570237,7.73292,2586.4,2585.7,6.31643]
[1723251570438,7.73292,2586.4,2585.6,4.640987]
[1723251570439,3.86585,2586.8,2585.9,2.4491]
[1723251570649,3.8662,2586.6,2586.0,3.86685]
[1723251570858,3.86618,2586.6,2586.0,3.86685]
[1723251571229,3.86618,2586.6,2585.9,2.4491]
[1723251571428,3.86618,2586.6,2585.9,6.31619]
[1723251571662,3.86618,2586.6,2586.0,3.86695]
[1723251571865,3.86559,2587.0,2586.4,3.86627]
[1723251572066,3.86536,2587.1,2586.5,2.4491]
[1723251572271,3.86522,2587.2,2586.6,3.86594]
[1723251572469,3.86522,2587.2,2586.6,4.96528238]
[1723251572837,3.86536,2587.1,2586.6,4.96528238]
[1723251573245,3.86522,2587.2,2586.6,4.96528238]
[1723251574649,3.86493,2587.4,2586.7,6.315]
[1723251574980,3.8643,2587.8,2587.1,3.86523]
[1723251575185,3.86474,2587.5,2587.1,1.09528691]
[1723251575474,3.86474,2587.5,2587.1,1.017991]
[1723251575683,3.8645,2587.7,2587.2,0.3467091]
[1723251575969,3.8645,2587.7,2587.2,2.4491]
[1723251576735,3.8645,2587.7,2587.3,0.07729591]
[1723251576936,3.8645,2587.7,2587.2,2.52639292]
[1723251577136,3.8645,2587.7,2587.3,0.07729294]
[1723251577760,3.8645,2587.7,2587.3,0.0772929]
[1723251577955,3.0,2588.2,2587.3,4.58134319]
[1723251578174,3.8636,2588.3,2587.6,3.86448]
[1723251578341,3.86386,2588.1,2587.8,2.4491]
[1723251579742,3.86386,2588.1,2587.8,2.69401]
[1723251580474,3.86358,2588.3,2587.8,2.69401]
[1723251580974,3.86332,2588.5,2587.9,3.9413998]
[1723251581335,7.72667,2588.5,2587.9,3.9413098]
[1723251581540,3.86348,2588.4,2588.0,0.66353198]
[1723251581747,3.86348,2588.4,2587.9,0.0772798]
[1723251582878,3.86356,2588.3,2587.9,0.0772798]
[1723251584395,3.8641,2588.0,2587.8,2.4491]
[1723251584612,3.86374,2588.2,2587.8,2.4491]
[1723251585183,3.8634,2588.4,2587.8,2.4491]
[1723251585369,7.72692,2588.4,2587.9,0.24491]
[1723251585585,3.86372,2588.2,2587.9,0.24491]
[1723251586168,3.8634,2588.4,2587.9,0.32218303]
[1723251586580,3.8634,2588.4,2587.9,0.24491]
[1723251587299,3.86372,2588.2,2587.9,0.24491]
[1723251587499,3.86394,2588.1,2587.9,0.24491]
[1723251587685,3.86372,2588.2,2587.9,0.24491]
[1723251587686,7.72752,2588.2,2587.9,0.24491]
[1723251588373,3.86372,2588.2,2587.9,0.24491]
[1723251591321,3.86372,2588.2,2587.8,2.4491]
[1723251591322,3.86413,2587.9,2587.8,2.4491]
[1723251591673,3.86403,2588.0,2587.8,2.4491]
[1723251591970,7.72812,2588.0,2587.8,2.4491]
[1723251592608,3.86403,2588.0,2587.8,2.4491]
[1723251592774,3.86403,2588.0,2587.9,0.24491]
[1723251593688,3.86403,2588.0,2587.8,2.4491]
[1723251593887,3.86413,2587.9,2587.8,2.4491]
[1723251594319,3.86345,2588.4,2587.8,2.4491]
[1723251594488,6.86291,2588.8,2588.0,2.4764]
[1723251594489,3.0,2588.8,2588.0,2.4764]
[1723251594674,3.86333,2588.5,2588.1,0.30264]
[1723251595708,3.86367,2588.3,2588.1,0.30264]
[1723251596616,7.72669,2588.5,2588.1,0.30264]
[1723251596915,3.86349,2588.4,2588.1,0.30264]
[1723251597079,3.86332,2588.5,2588.1,0.30264]
[1723251597481,7.72665,2588.5,2588.1,0.30264]
[1723251597887,3.86354,2588.3,2588.1,0.30264]
[1723251598100,3.86354,2588.3,2588.0,2.4764]
[1723251598323,3.86383,2588.1,2588.0,2.4764]
[1723251598521,3.86354,2588.3,2588.0,2.4764]
[1723251598714,3.8637,2588.2,2588.0,2.4764]
[1723251599403,3.86383,2588.1,2587.7,2.4764]
[1723251599610,3.86383,2588.1,2587.7,2.862847]
[1723251600227,7.72778,2588.1,2587.7,2.862847]
[1723251600444,2.3144,2588.5,2587.7,2.4764]
[1723251600445,3.86428,2587.8,2587.7,2.4764]
[1723251600728,3.0,2588.9,2587.7,6.34073]
[1723251600729,3.86377,2588.2,2587.7,6.34073]
[1723251600895,3.86313,2588.6,2588.0,3.86397]
[1723251601101,3.0,2588.9,2588.1,0.616537]
[1723251601431,3.86331,2588.5,2587.6,2.3014]
[1723251601714,3.86331,2588.5,2588.0,2.3014]
[1723251601715,7.72663,2588.5,2588.0,2.3014]
[1723251601916,3.8634,2588.4,2588.0,2.3014]
[1723251602511,3.86331,2588.5,2587.7,7.49]
[1723251602512,3.86402,2588.0,2587.7,9.7914]
[1723251602720,3.86422,2587.9,2587.5,0.686484]
[1723251603217,3.8643,2587.8,2587.5,0.686484]
[1723251603418,3.86422,2587.9,2587.5,0.686484]
[1723251604183,3.86482,2587.5,2587.2,2.3014]
[1723251604407,3.86497,2587.4,2587.2,2.3014]
[1723251605215,3.86467,2587.6,2587.2,2.3014]
[1723251605422,3.86467,2587.6,2587.2,2.918086]
[1723251605582,3.86474,2587.5,2587.2,2.918086]
[1723251605908,3.86474,2587.5,2587.2,2.3014]
[1723251605909,3.86488,2587.4,2587.2,2.3014]
[1723251606282,3.86474,2587.5,2587.2,2.3014]
[1723251606729,3.86398,2588.0,2587.3,3.86493]
[1723251606885,3.0,2588.2,2587.3,3.86493]
[1723251606886,3.86333,2588.5,2587.7,3.8644]
[1723251607086,3.86333,2588.5,2588.0,2.3014]
[1723251607288,3.86355,2588.3,2588.0,2.3014]
[1723251607488,3.86333,2588.5,2588.0,2.3014]
[1723251607489,3.86346,2588.4,2588.0,2.3014]
[1723251607684,3.86333,2588.5,2588.0,2.3014]
[1723251607885,3.86333,2588.5,2588.1,0.69381803]
[1723251608187,3.86332,2588.5,2588.1,0.69381803]
[1723251608389,3.86332,2588.5,2588.1,0.616553]
[1723251609190,7.72667,2588.5,2588.1,0.616553]
[1723251609591,3.86341,2588.4,2588.1,0.616553]
[1723251609829,3.86341,2588.4,2588.0,2.3014]
[1723251609989,3.86332,2588.5,2588.0,2.3014]
[1723251610191,7.7267,2588.5,2588.0,2.3014]
[1723251610625,7.7267,2588.5,2588.1,0.0772701]
[1723251610626,3.86332,2588.5,2588.1,0.0772701]
[1723251610805,3.86311,2588.6,2588.1,0.70154511]
[1723251610992,3.86311,2588.6,2588.1,4.56537511]
[1723251611609,3.86311,2588.6,2588.2,0.07726505]
[1723251611831,7.72631,2588.6,2588.1,0.70154006]
[1723251612132,3.86311,2588.6,2588.2,0.30029401]
[1723251612795,2.3461,2588.9,2587.8,0.61658]
[1723251612994,2.3461,2588.9,2587.8,2.3014]
[1723251612995,3.86387,2588.1,2587.8,2.3014]
[1723251613397,3.86361,2588.3,2587.8,2.3014]
[1723251613734,7.72729,2588.3,2587.8,2.3014]
[1723251614094,2.3461,2588.5,2587.8,2.3014]
[1723251614303,7.72727,2588.3,2587.8,2.3014]
[1723251614542,7.72726,2588.3,2587.8,2.3014]
[1723251615202,3.86362,2588.3,2587.8,2.3014]
[1723251615437,3.86346,2588.4,2587.8,6.16568]
[1723251615638,3.86331,2588.5,2587.9,4.94438976]
[1723251615815,3.86331,2588.5,2587.9,4.867119]
[1723251616422,3.86331,2588.5,2587.9,1.003009]
[1723251616823,3.8637,2588.2,2587.9,1.003009]
[1723251616996,7.7275,2588.2,2587.8,2.3014]
[1723251617203,3.8637,2588.2,2587.8,2.3014]
[1723251619524,3.86348,2588.4,2587.8,6.24292622]
[1723251619730,3.86362,2588.3,2587.9,0.62429262]
[1723251620105,3.86362,2588.3,2587.8,2.3014]
[1723251620509,3.86338,2588.5,2587.9,6.33314]
[1723251620811,3.86338,2588.5,2588.0,3.86397]
[1723251621646,3.86338,2588.5,2587.9,2.4691]
[1723251621647,3.86366,2588.3,2587.9,2.4691]
[1723251621939,3.86369,2588.2,2587.9,2.4691]
[1723251622257,3.86351,2588.4,2587.9,2.71601]
[1723251622442,7.72696,2588.4,2587.9,2.71601]
[1723251622814,3.86347,2588.4,2587.9,2.71601]
[1723251623010,3.86347,2588.4,2587.9,6.58013]
[1723251623644,5.3645,2588.9,2587.9,2.71601]
[1723251623946,3.86349,2588.4,2587.9,2.4691]
[1723251626149,7.72699,2588.4,2587.9,2.4691]
[1723251626480,3.86357,2588.3,2587.9,2.4691]
[1723251626680,3.86357,2588.3,2587.9,3.102429]
[1723251627748,3.86349,2588.4,2587.9,6.966459]
[1723251627953,3.86316,2588.6,2587.9,6.966459]
[1723251627954,3.86316,2588.6,2588.2,2.4691]
[1723251629872,3.86284,2588.8,2588.3,0.0772619]
[1723251630374,3.86284,2588.8,2588.3,3.9407119]
[1723251630578,3.86284,2588.8,2588.4,1.02734019]
[1723251630950,3.86236,2589.1,2588.5,2.4691]
[1723251631151,3.86235,2589.1,2588.6,3.86308]
[1723251631350,3.86235,2589.1,2588.6,3.86299]
[1723251631547,3.86213,2589.3,2588.7,4.551129]
[1723251631548,7.72431,2589.3,2588.7,4.551129]
[1723251631789,3.8622,2589.2,2588.7,4.551129]
[1723251632353,4.63323353,2589.9,2589.2,3.86219]
[1723251632354,3.86157,2589.7,2589.2,3.86219]
[1723251632666,3.86103,2590.0,2589.3,2.5463322]
[1723251632855,3.86088,2590.1,2589.5,3.86161]
[1723251633054,3.86088,2590.1,2589.7,2.4691]
[1723251634571,0.772151,2590.1,2589.7,2.4691]
[1723251634886,3.86188,2589.5,2589.1,2.4691]
[1723251635185,3.86209,2589.3,2589.1,2.4691]
[1723251635757,3.86209,2589.3,2588.8,2.4691]
[1723251635954,3.86181,2589.5,2588.8,7.713995]
[1723251636180,3.86181,2589.5,2588.8,5.244895]
[1723251636355,3.86153,2589.7,2589.2,2.4691]
[1723251636554,3.86152,2589.7,2589.2,2.4691]
[1723251636756,3.86177,2589.5,2589.2,2.4691]
[1723251636988,0.386152,2589.7,2589.2,2.4691]
[1723251637188,2.3645,2589.5,2588.8,2.4691]
[1723251637388,3.86254,2589.0,2588.8,2.4691]
[1723251638306,3.86293,2588.8,2588.5,2.4691]
[1723251638461,3.86338,2588.5,2588.2,2.4691]
[1723251639165,3.86272,2588.9,2588.2,6.33266]
[1723251639574,3.8628,2588.8,2588.2,6.33266]
[1723251639885,3.86272,2588.9,2588.2,2.4691]
[1723251639886,3.86298,2588.7,2588.2,2.4691]
[1723251640061,3.86206,2589.3,2588.2,2.4691]
[1723251640062,3.0,2589.3,2588.2,2.4691]
[1723251640257,3.86332,2588.5,2588.2,2.4691]
[1723251641284,3.863,2588.7,2588.2,2.4691]
[1723251641503,3.8627,2588.9,2588.2,6.33268]
[1723251641678,3.8627,2588.9,2588.2,2.4691]
[1723251643362,3.8627,2588.9,2588.3,3.86341]
[1723251643562,3.86264,2588.9,2588.4,2.3259]
[1723251643802,3.0,2589.3,2588.4,2.3259]
[1723251643975,3.86348,2588.4,2588.1,2.40316166]
[1723251644181,3.86348,2588.4,2588.1,2.3259]
[1723251644182,3.86355,2588.3,2588.1,2.3259]
[1723251644999,3.86348,2588.4,2588.1,2.3259]
[1723251645710,3.86363,2588.3,2588.1,2.3259]
[1723251646078,6.30246,2588.8,2587.6,2.3259]
[1723251646282,3.86407,2588.0,2587.6,2.3259]
[1723251646788,3.86415,2587.9,2587.6,2.3259]
[1723251646987,3.86407,2588.0,2587.6,2.3259]
[1723251646988,3.8643,2587.8,2587.6,2.3259]
[1723251647229,3.86452,2587.7,2587.2,2.3259]
[1723251647432,3.86452,2587.7,2587.3,0.619115]
[1723251648011,3.8643,2587.8,2587.3,0.619115]
[1723251648012,3.86459,2587.6,2587.3,0.619115]
[1723251648341,2.4396,2588.3,2587.2,2.3259]
[1723251648342,3.86484,2587.5,2587.2,2.3259]
[1723251648522,3.86494,2587.4,2587.2,2.3259]
[1723251648831,3.86522,2587.2,2586.9,2.3259]
[1723251648992,3.86494,2587.4,2586.9,2.3259]
[1723251649192,7.72997,2587.4,2586.9,2.3259]
[1723251649395,3.86519,2587.2,2586.9,2.3259]
[1723251650490,3.86519,2587.2,2586.3,11.518]
[1723251650491,3.86563,2586.9,2586.6,2.3259]
[1723251650679,3.86526,2587.2,2586.6,2.3259]
[1723251651185,3.86535,2587.1,2586.6,2.3259]
[1723251652007,3.86467,2587.6,2587.0,3.86536]
[1723251652008,3.8646,2587.6,2587.0,3.86536]
[1723251652211,3.8646,2587.6,2586.9,2.3259]
[1723251652212,3.86397,2588.1,2587.4,3.86478]
[1723251652419,3.86411,2588.0,2587.4,3.86478]
[1723251652639,3.86422,2587.9,2587.2,10.0561]
[1723251652874,2.4396,2588.5,2587.2,2.3259]
[1723251652875,3.86437,2587.8,2587.2,2.3259]
[1723251653155,3.86475,2587.5,2587.2,2.3259]
[1723251653352,3.86466,2587.6,2587.2,2.3259]
[1723251654146,3.8649,2587.4,2587.2,2.3259]
[1723251654359,7.7299,2587.4,2586.9,5.3259]
[1723251654642,2.4396,2588.0,2587.0,3.86547]
[1723251654643,7.72934,2587.6,2587.0,3.86547]
[1723251654814,3.86465,2587.6,2586.9,5.3259]
[1723251655230,3.865,2587.4,2586.9,5.3259]
[1723251655478,3.86519,2587.2,2586.9,5.3259]
[1723251655602,2.4396,2587.5,2586.5,2.3259]
[1723251655997,3.8658,2586.8,2586.5,2.3259]
[1723251656413,7.7317,2586.8,2586.5,2.3259]
[1723251657140,3.8658,2586.8,2586.5,2.3259]
[1723251657333,3.86607,2586.6,2586.5,2.3259]
[1723251658125,7.73225,2586.6,2586.1,2.3259]
[1723251658316,3.86607,2586.6,2586.1,2.945177]
[1723251658838,3.86607,2586.6,2586.1,6.811967]
[1723251659962,3.86654,2586.3,2585.8,2.3955]
[1723251660361,7.73388,2586.1,2585.8,2.3955]
[1723251660568,3.86699,2586.0,2585.8,2.3955]
[1723251660863,7.73387,2586.1,2585.8,2.3955]
[1723251661160,3.8667,2586.2,2585.8,2.3955]
[1723251661366,3.86658,2586.3,2585.8,2.3955]
[1723251661970,3.86683,2586.1,2585.8,2.3955]
[1723251662173,7.73376,2586.1,2585.8,2.3955]
[1723251662373,3.86683,2586.1,2585.8,2.3955]
[1723251663256,3.867,2586.0,2585.8,2.3955]
[1723251663564,3.86715,2585.9,2585.5,2.3955]
[1723251663786,2.3663,2586.4,2585.5,2.3955]
[1723251663929,2.3663,2586.4,2585.1,0.60586578]
[1723251663930,3.86722,2585.9,2585.2,2.3955]
[1723251664274,3.86722,2585.9,2585.3,3.86793]
[1723251664625,3.86744,2585.7,2585.2,2.3955]
[1723251665026,3.86759,2585.6,2585.2,2.3955]
[1723251665269,3.86759,2585.6,2585.2,3.021869]
[1723251665632,3.86718,2585.9,2585.2,2.3955]
[1723251665825,3.86718,2585.9,2585.3,3.86793]
[1723251667175,3.86737,2585.8,2585.2,6.26354]
[1723251667329,3.86737,2585.8,2585.2,7.276713]
[1723251668775,3.86744,2585.7,2585.2,3.408673]
[1723251668930,3.86673,2586.2,2585.2,2.3955]
[1723251669137,3.86771,2585.6,2585.2,2.3955]
[1723251669336,3.86781,2585.5,2585.2,2.3955]
[1723251670233,3.86687,2586.1,2585.2,2.3955]
[1723251670430,3.86767,2585.6,2585.2,2.3955]
[1723251670673,7.73534,2585.6,2585.2,2.3955]
[1723251670850,3.86773,2585.5,2585.2,2.3955]
[1723251671167,3.86787,2585.4,2585.2,2.3955]
[1723251671346,3.86787,2585.4,2584.9,2.3955]
[1723251671668,3.86825,2585.2,2584.9,2.3955]
[1723251671883,7.73651,2585.2,2584.9,2.3955]
[1723251672259,3.86825,2585.2,2584.9,2.3955]
[1723251672844,2.3663,2585.8,2584.9,2.3955]
[1723251673158,3.86803,2585.3,2584.9,2.3955]
[1723251673780,3.86796,2585.4,2584.9,2.3955]
[1723251675688,3.86806,2585.3,2584.9,2.3955]
[1723251675987,3.86796,2585.4,2584.9,2.3955]
[1723251676190,7.73597,2585.4,2584.9,2.3955]
[1723251676504,3.86769,2585.6,2584.9,3.021918]
[1723251676787,3.86783,2585.5,2585.0,3.86845]
[1723251677381,3.86792,2585.4,2584.9,3.021918]
[1723251677591,3.86792,2585.4,2585.0,1.0759268]
[1723251677901,3.86769,2585.6,2585.0,1.0759268]
[1723251678250,3.86716,2585.9,2585.3,3.86793]
[1723251678450,3.86716,2585.9,2585.4,2.3955]
[1723251678660,7.73436,2585.9,2585.4,2.3955]
[1723251678861,7.73443,2585.9,2585.4,2.3955]
[1723251679087,3.86731,2585.8,2585.4,2.3955]
[1723251679301,3.86716,2585.9,2585.4,2.3955]
[1723251679485,7.73439,2585.9,2585.4,3.02089544]
[1723251679797,3.86716,2585.9,2585.4,3.02089544]
[1723251679949,3.86716,2585.9,2585.4,2.39455244]
[1723251680151,10.26085,2586.3,2585.4,2.39455244]
[1723251680506,7.7345,2585.9,2585.4,2.39455244]
[1723251680992,3.86745,2585.7,2585.4,2.39455244]
[1723251681552,3.86763,2585.6,2585.4,2.39455244]
[1723251681787,3.86765,2585.6,2585.4,2.39455244]
[1723251681983,3.86745,2585.7,2585.4,2.39455244]
[1723251682210,7.73498,2585.7,2585.4,2.39455244]
[1723251682523,3.86745,2585.7,2585.4,2.39455244]
[1723251682818,3.86768,2585.6,2585.4,2.39455244]
[1723251682973,3.86745,2585.7,2585.4,2.39455244]
[1723251683807,3.86757,2585.6,2585.0,2.4599]
[1723251683971,3.86772,2585.5,2585.0,2.4599]
[1723251684310,3.86802,2585.3,2585.0,2.4599]
[1723251684716,3.86832,2585.1,2584.8,2.4599]
[1723251684904,3.86802,2585.3,2584.8,2.4599]
[1723251685585,3.86802,2585.3,2584.8,6.32864]
[1723251685794,3.86802,2585.3,2584.8,3.479646]
[1723251686018,7.73612,2585.3,2584.8,3.479646]
[1723251686327,3.86862,2584.9,2584.3,3.86942]
[1723251686471,7.89548,2585.7,2584.6,2.4599]
[1723251686472,3.0,2585.6,2584.6,2.4599]
[1723251686671,2.423,2586.6,2585.2,2.4599]
[1723251686672,7.73446,2585.9,2585.2,2.4599]
[1723251686915,3.86721,2585.9,2585.3,3.9452357]
[1723251687417,3.86691,2586.1,2585.5,3.86762]
[1723251687616,3.86631,2586.5,2585.9,3.86711]
[1723251687816,3.86498,2587.4,2585.9,3.86711]
[1723251687817,2.4817,2586.9,2586.0,0.46404014]
[1723251688023,3.86634,2586.5,2586.1,2.4599]
[1723251688233,3.86639,2586.4,2586.1,2.4599]
[1723251688522,6.34736,2586.9,2586.1,2.4599]
[1723251688523,3.86662,2586.3,2586.1,2.4599]
[1723251688693,7.73326,2586.3,2586.1,2.4599]
[1723251688872,3.86667,2586.2,2586.1,2.4599]
[1723251689229,3.86571,2586.9,2586.2,3.86667]
[1723251689403,3.86571,2586.9,2586.3,3.8664]
[1723251689592,3.86571,2586.9,2586.3,3.94371808]
[1723251689924,3.86582,2586.8,2586.1,2.70589]
[1723251690217,3.86463,2587.6,2586.1,2.4599]
[1723251690218,3.8664,2586.4,2586.1,2.4599]
[1723251690554,3.86658,2586.3,2586.1,2.4599]
[1723251690689,7.73289,2586.4,2586.1,2.4599]
[1723251690893,3.86662,2586.3,2586.1,2.4599]
[1723251691678,3.86661,2586.3,2586.1,2.4599]
[1723251691913,3.86708,2586.0,2585.7,2.4599]
[1723251692525,3.86727,2585.8,2585.4,2.4599]
[1723251693230,3.86784,2585.5,2585.1,2.4599]
[1723251693588,3.86757,2585.7,2585.1,2.4599]
[1723251693785,3.86782,2585.5,2585.1,2.4599]
[1723251694145,3.8681,2585.3,2585.1,2.4599]
[1723251694340,3.8681,2585.3,2584.8,2.4599]
[1723251694551,3.86833,2585.1,2584.8,2.4599]
[1723251694843,3.86833,2585.1,2584.5,6.32903]
[1723251694982,3.86833,2585.1,2584.5,6.715933]
[1723251695183,3.86833,2585.1,2584.5,10.585053]
[1723251695412,3.86833,2585.1,2584.6,3.86906]
[1723251696011,3.86833,2585.1,2584.5,2.846813]
[1723251696191,3.86811,2585.3,2584.6,3.86906]
[1723251696404,3.86811,2585.3,2584.6,4.5406693]
[1723251696736,3.86775,2585.5,2584.8,3.86864]
[1723251696885,3.86789,2585.4,2584.9,0.05753539]
[1723251697634,3.86758,2585.6,2585.0,3.86833]
[1723251697796,3.86758,2585.6,2585.1,0.46688792]
[1723251698334,7.73529,2585.6,2585.1,0.46688792]
[1723251698490,3.86758,2585.6,2585.1,0.46688792]
[1723251698684,7.73477,2585.8,2585.1,4.33509792]
[1723251698913,3.86743,2585.7,2585.2,0.43352179]
[1723251699110,3.86758,2585.6,2585.1,0.39258654]
[1723251699434,5.4817,2586.0,2584.7,2.4599]
[1723251699435,3.86824,2585.2,2584.7,2.4599]
[1723251699636,3.86776,2585.5,2584.9,3.86851]
[1723251700410,3.86776,2585.5,2584.9,4.501351]
[1723251700664,3.86763,2585.6,2584.9,0.71018218]
[1723251700800,3.86735,2585.8,2584.9,0.07734118]
[1723251700995,5.4817,2586.0,2585.4,3.86777]
[1723251700996,7.73409,2586.0,2585.4,3.86777]
[1723251701234,3.86732,2585.8,2585.1,2.4848]
[1723251701436,3.8669,2586.1,2585.1,2.4848]
[1723251701437,3.86773,2585.5,2585.1,2.4848]
[1723251701754,3.8678,2585.5,2584.9,2.4848]